fUST/lending_fUST_20240225
["ID","MTS","AMOUNT","RATE_DAILY","PERIOD"]
[315055337,1708792239674,-500.0,0.00019178,2]
[315055338,1708792239685,-500.0,0.00019178,2]
[315055339,1708792239696,-1573.36,0.00019178,2]
[315055340,1708792239706,-780.3,0.00019178,2]
[315055341,1708792239716,-849.27,0.00019178,2]
[315055342,1708792239728,-961.52,0.00019178,2]
[315055343,1708792239737,-1739.19,0.00019178,2]
[315055344,1708792239748,-500.0,0.00019178,2]
[315055345,1708792239758,-500.0,0.00019178,2]
[315055346,1708792239768,-590.41,0.00019178,2]
[315055347,1708792239778,-500.0,0.00019178,2]
[315055348,1708792239788,-500.0,0.00019178,2]
[315055349,1708792239799,-1039.76,0.00019178,2]
[315055350,1708792239811,-500.0,0.00019178,2]
[315055351,1708792239823,-818.24,0.00019178,2]
[315055352,1708792239833,-500.0,0.00019178,2]
[315055353,1708792239843,-500.0,0.00019178,2]
[315055355,1708792239856,-635.34,0.00019178,2]
[315055357,1708792239866,-8430.61,0.00019178,2]
[315055359,1708792239877,-7966.37,0.00019178,2]
[315055361,1708792239887,-500.0,0.00019178,2]
[315055363,1708792239898,-500.0,0.00019178,2]
[315055365,1708792239908,-501.19258491,0.00019178,2]
[315055367,1708792239917,-500.0,0.00019178,2]
[315055373,1708792239926,-500.0,0.00019178,2]
[315055374,1708792240075,-551.53,0.00019178,2]
[315055375,1708792240084,-500.0,0.00019178,2]
[315055376,1708792240094,-500.0,0.00019178,2]
[315055377,1708792240103,-500.0,0.00019178,2]
[315055378,1708792240112,-500.0,0.00019178,2]
[315055379,1708792240121,-500.0,0.00019178,2]
[315055380,1708792240130,-517.57000004,0.00019178,2]
[315055381,1708792240140,-757.09,0.00019178,2]
[315055382,1708792240149,-500.0,0.00019178,2]
[315055383,1708792240158,-763.88,0.00019178,2]
[315055384,1708792240167,-166.666666,0.00019178,2]
[315055385,1708792240177,-233.419529,0.00019178,2]
[315055386,1708792240186,-74857.93,0.0001923,3]
[315055387,1708792240196,-733.4886593,0.0001924,2]
[315055388,1708792240205,-733.4886593,0.0001924,2]
[315055389,1708792240215,-733.4886593,0.0001924,2]
[315055390,1708792240224,-733.4886593,0.0001924,2]
[315055391,1708792240233,-733.4886593,0.0001924,2]
[315055392,1708792240243,-733.4886593,0.0001924,2]
[315055393,1708792240252,-733.4886593,0.0001924,2]
[315055394,1708792240261,-733.4886593,0.0001924,2]
[315055395,1708792240271,-733.4886593,0.0001924,2]
[315055396,1708792240280,-733.4886593,0.0001924,2]
[315055397,1708792240289,-733.4886593,0.0001924,2]
[315055398,1708792240299,-733.4886593,0.0001924,2]
[315055399,1708792240309,-733.4886593,0.0001924,2]
[315055400,1708792240318,-733.4886593,0.0001924,2]
[315055401,1708792240328,-733.4886593,0.0001924,2]
[315055402,1708792240337,-733.4886593,0.0001924,2]
[315055403,1708792240347,-733.4886593,0.0001924,2]
[315055404,1708792240356,-733.4886593,0.0001924,2]
[315055405,1708792240365,-733.4886593,0.0001924,2]
[315055406,1708792240375,-733.4886593,0.0001924,2]
[315055407,1708792240385,-733.4886593,0.0001924,2]
[315055408,1708792240394,-733.4886593,0.0001924,2]
[315055409,1708792240404,-733.4886593,0.0001924,2]
[315055410,1708792240413,-733.4886593,0.0001924,2]
[315055411,1708792240423,-733.4886593,0.0001924,2]
[315055412,1708792240432,-733.4886593,0.0001924,2]
[315055413,1708792240442,-733.4886593,0.0001924,2]
[315055414,1708792240451,-733.4886593,0.0001924,2]
[315055415,1708792240460,-733.4886593,0.0001924,2]
[315055416,1708792240469,-733.4886593,0.0001924,2]
[315055417,1708792240478,-733.4886593,0.0001924,2]
[315055418,1708792240487,-733.4886593,0.0001924,2]
[315055419,1708792240496,-733.4886593,0.0001924,2]
[315055420,1708792240505,-733.4886593,0.0001924,2]
[315055421,1708792240514,-733.4886593,0.0001924,2]
[315055422,1708792240525,-733.4886593,0.0001924,2]
[315055423,1708792240533,-733.4886593,0.0001924,2]
[315055424,1708792240542,-733.4886593,0.0001924,2]
[315055425,1708792240551,-733.4886593,0.0001924,2]
[315055426,1708792240560,-733.4886593,0.0001924,2]
[315055427,1708792240569,-733.4886593,0.0001924,2]
[315055428,1708792240579,-733.4886593,0.0001924,2]
[315055429,1708792240587,-733.4886593,0.0001924,2]
[315055430,1708792240597,-733.4886593,0.0001924,2]
[315055431,1708792240606,-733.4886593,0.0001924,2]
[315055432,1708792240615,-733.4886593,0.0001924,2]
[315055433,1708792240624,-733.4886593,0.0001924,2]
[315055434,1708792240634,-733.4886593,0.0001924,2]
[315055435,1708792240647,-733.4886593,0.0001924,2]
[315055436,1708792240656,-733.4886593,0.0001924,2]
[315055437,1708792240665,-733.4886593,0.0001924,2]
[315055438,1708792240674,-733.4886593,0.0001924,2]
[315055439,1708792240684,-733.4886593,0.0001924,2]
[315055440,1708792240693,-733.4886593,0.0001924,2]
[315055441,1708792240702,-733.4886593,0.0001924,2]
[315055442,1708792240711,-733.4886593,0.0001924,2]
[315055443,1708792240720,-733.4886593,0.0001924,2]
[315055446,1708792240730,-733.4886593,0.0001924,2]
[315055449,1708792240739,-733.4886593,0.0001924,2]
[315055451,1708792240748,-733.4886593,0.0001924,2]
[315055452,1708792240757,-728.43011682,0.0001924,2]
[315055453,1708792240766,-728.43011682,0.0001924,2]
[315055454,1708792240775,-728.43011682,0.0001924,2]
[315055455,1708792240784,-728.43011682,0.0001924,2]
[315055456,1708792240793,-728.43011682,0.0001924,2]
[315055457,1708792240803,-728.43011682,0.0001924,2]
[315055458,1708792240812,-728.43011682,0.0001924,2]
[315055459,1708792240821,-728.43011682,0.0001924,2]
[315055460,1708792240831,-728.43011682,0.0001924,2]
[315055462,1708792240840,-728.43011682,0.0001924,2]
[315055463,1708792240849,-728.43011682,0.0001924,2]
[315055465,1708792240858,-728.43011682,0.0001924,2]
[315055466,1708792240867,-728.43011682,0.0001924,2]
[315055468,1708792240876,-728.43011682,0.0001924,2]
[315055469,1708792240885,-728.43011682,0.0001924,2]
[315055470,1708792240894,-728.43011682,0.0001924,2]
[315055471,1708792240903,-728.43011682,0.0001924,2]
[315055472,1708792240912,-728.43011682,0.0001924,2]
[315055473,1708792240921,-728.43011682,0.0001924,2]
[315055474,1708792240932,-728.43011682,0.0001924,2]
[315055475,1708792240941,-728.43011682,0.0001924,2]
[315055476,1708792240950,-728.43011682,0.0001924,2]
[315055477,1708792240958,-728.43011682,0.0001924,2]
[315055478,1708792240967,-728.43011682,0.0001924,2]
[315055479,1708792240977,-728.43011682,0.0001924,2]
[315055480,1708792240986,-728.43011682,0.0001924,2]
[315055481,1708792240995,-728.43011682,0.0001924,2]
[315055482,1708792241005,-728.43011682,0.0001924,2]
[315055483,1708792241014,-728.43011673,0.0001924,2]
[315055484,1708792241023,-500.0,0.00019306,2]
[315055485,1708792241032,-577.2719451,0.00019306,2]
[315055486,1708792241041,-330.83494144,0.00019306,2]
[315055487,1708792241050,-638.97,0.00019306,2]
[315055488,1708792241061,-500.0,0.00019306,2]
[315055489,1708792241070,-500.0,0.00019306,2]
[315055490,1708792241080,-500.0,0.00019306,2]
[315055491,1708792241089,-500.0,0.00019306,2]
[315055492,1708792241098,-300.0,0.00019306,2]
[315055493,1708792241107,-500.0,0.00019306,2]
[315055494,1708792241117,-500.0,0.00019306,2]
[315055495,1708792241126,-544.29,0.00019306,2]
[315055496,1708792241135,-496.7004288,0.00019306,2]
[315055497,1708792241145,-409.64024936,0.00019306,2]
[315055498,1708792241154,-500.0,0.00019306,2]
[315055499,1708792241164,-501.88019527,0.00019306,2]
[315055500,1708792241173,-500.0,0.00019306,2]
[315055501,1708792241182,-500.0,0.00019306,2]
[315055502,1708792241192,-500.0,0.00019306,2]
[315055503,1708792241201,-500.0,0.00019306,2]
[315055504,1708792241210,-500.0,0.00019306,2]
[315055505,1708792241220,-500.0,0.00019306,2]
[315055506,1708792241230,-3371.77,0.00019306,2]
[315055507,1708792241239,-4194.45,0.00019306,2]
[315055508,1708792241248,-242.17076754,0.00019306,2]
[315055509,1708792241257,-500.0,0.00019306,2]
[315055510,1708792241267,-614.65414153,0.00019306,2]
[315055511,1708792241276,-1247.57,0.00019306,2]
[315055512,1708792241286,-1710.6,0.00019306,2]
[315055513,1708792241295,-500.0,0.00019306,2]
[315055514,1708792241304,-1405.15,0.00019306,2]
[315055515,1708792241314,-500.0,0.00019306,2]
[315055516,1708792241324,-500.0,0.00019306,2]
[315055517,1708792241334,-500.0,0.00019306,2]
[315055518,1708792241343,-1058.4,0.00019306,2]
[315055519,1708792241353,-500.63179742,0.00019306,2]
[315055520,1708792241362,-500.0,0.00019306,2]
[315055521,1708792241371,-500.0,0.00019306,2]
[315055522,1708792241380,-500.0,0.00019306,2]
[315055523,1708792241390,-500.0,0.00019306,2]
[315055524,1708792241399,-500.0,0.00019306,2]
[315055525,1708792241409,-500.0,0.00019306,2]
[315055526,1708792241418,-500.0,0.00019306,2]
[315055527,1708792241427,-333.72,0.00019337,3]
[315055528,1708792241436,-4838.19,0.00019347,2]
[315055529,1708792241445,-2114.78,0.00019347,2]
[315055530,1708792241454,-500.0,0.00019347,2]
[315055531,1708792241463,-1094.48,0.00019347,2]
[315055532,1708792241472,-86687.91634267,0.00019348,2]
[315055533,1708792241482,-200.5294442,0.00019425,2]
[315055534,1708792241491,-200.5294442,0.00019425,2]
[315055535,1708792241500,-155.00310006,0.00019438,2]
[315055536,1708792241509,-794.77,0.00019447,2]
[315055537,1708792241518,-794.77,0.00019447,2]
[315055538,1708792241528,-794.77,0.00019447,2]
[315055539,1708792241537,-794.77,0.00019447,2]
[315055540,1708792241546,-794.77,0.00019447,2]
[315055541,1708792241557,-794.77,0.00019451,2]
[315055542,1708792241566,-794.77,0.00019451,2]
[315055543,1708792241575,-500.0,0.00019452,2]
[315055544,1708792241584,-500.0,0.00019452,2]
[315055545,1708792241593,-635.87,0.00019452,2]
[315055546,1708792241602,-500.0,0.00019452,2]
[315055547,1708792241611,-500.0,0.00019452,2]
[315055548,1708792241620,-500.0,0.00019452,2]
[315055549,1708792241629,-500.0,0.00019452,2]
[315055550,1708792241639,-505.64,0.00019452,2]
[315055552,1708792241652,-500.0,0.00019452,2]
[315055554,1708792241661,-1218.54,0.00019452,2]
[315055555,1708792241670,-500.0,0.00019452,2]
[315055557,1708792241679,-285.47079158,0.00019452,2]
[315055558,1708792241690,-500.0,0.00019452,2]
[315055560,1708792241699,-500.0,0.00019452,2]
[315055562,1708792241708,-500.0,0.00019452,2]
[315055563,1708792241716,-1573.36,0.00019452,2]
[315055565,1708792241726,-780.3,0.00019452,2]
[315055567,1708792241737,-849.27,0.00019452,2]
[315055568,1708792241746,-961.52,0.00019452,2]
[315055570,1708792241754,-1739.19,0.00019452,2]
[315055571,1708792241763,-590.41,0.00019452,2]
[315055573,1708792241772,-500.0,0.00019452,2]
[315055575,1708792241781,-1039.76,0.00019452,2]
[315055576,1708792241790,-515.55018952,0.00019452,2]
[315055578,1708792241799,-818.24,0.00019452,2]
[315055580,1708792241809,-500.0,0.00019452,2]
[315055581,1708792241818,-635.34,0.00019452,2]
[315055583,1708792241826,-8430.61,0.00019452,2]
[315055584,1708792241835,-7966.37,0.00019452,2]
[315055586,1708792241844,-500.0,0.00019452,2]
[315055588,1708792241853,-500.0,0.00019452,2]
[315055589,1708792241863,-500.0,0.00019452,2]
[315055590,1708792241872,-551.53,0.00019452,2]
[315055591,1708792241881,-500.0,0.00019452,2]
[315055592,1708792241891,-500.0,0.00019452,2]
[315055593,1708792241900,-500.0,0.00019452,2]
[315055594,1708792241909,-757.09,0.00019452,2]
[315055595,1708792241918,-500.0,0.00019452,2]
[315055596,1708792241927,-763.88,0.00019452,2]
[315055597,1708792241936,-185.54660767,0.00019491,2]
[315055598,1708792241945,-185.54660767,0.00019496,2]
[315055599,1708792241955,-185.54660767,0.000195,2]
[315055600,1708792241964,-200.5294442,0.000195,2]
[315055601,1708792241973,-173.5714033,0.0001952,2]
[315055602,1708792241982,-638.97,0.0001958,2]
[315055603,1708792241992,-500.0,0.0001958,2]
[315055604,1708792242002,-500.0,0.0001958,2]
[315055605,1708792242011,-500.0,0.0001958,2]
[315055606,1708792242021,-500.0,0.0001958,2]
[315055607,1708792242031,-544.29,0.0001958,2]
[315055608,1708792242040,-500.0,0.0001958,2]
[315055609,1708792242050,-500.0,0.0001958,2]
[315055610,1708792242060,-500.0,0.0001958,2]
[315055611,1708792242070,-3371.77,0.0001958,2]
[315055612,1708792242079,-4194.45,0.0001958,2]
[315055613,1708792242089,-1247.57,0.0001958,2]
[315055614,1708792242098,-1710.6,0.0001958,2]
[315055615,1708792242108,-644.04663569,0.0001958,2]
[315055616,1708792242117,-1405.15,0.0001958,2]
[315055617,1708792242126,-500.0,0.0001958,2]
[315055618,1708792242136,-500.0,0.0001958,2]
[315055619,1708792242145,-1058.4,0.0001958,2]
[315055620,1708792242157,-500.0,0.0001958,2]
[315055621,1708792242166,-500.0,0.0001958,2]
[315055622,1708792242176,-500.0,0.0001958,2]
[315055623,1708792242185,-4838.19,0.00019621,2]
[315055624,1708792242195,-2114.78,0.00019621,2]
[315055625,1708792242204,-1094.48,0.00019621,2]
[315055626,1708792242214,-166.666666,0.00019627,2]
[315055627,1708792242223,-794.77,0.00019725,2]
[315055628,1708792242232,-500.0,0.00019726,2]
[315055629,1708792242242,-635.87,0.00019726,2]
[315055630,1708792242251,-500.0,0.00019726,2]
[315055631,1708792242260,-500.0,0.00019726,2]
[315055632,1708792242270,-500.0,0.00019726,2]
[315055633,1708792242279,-500.0,0.00019726,2]
[315055634,1708792242289,-1218.54,0.00019726,2]
[315055635,1708792242299,-500.0,0.00019726,2]
[315055636,1708792242309,-500.0,0.00019726,2]
[315055637,1708792242318,-559.01,0.00019726,2]
[315055638,1708792242329,-500.0,0.00019726,2]
[315055639,1708792242339,-1573.36,0.00019726,2]
[315055640,1708792242348,-780.3,0.00019726,2]
[315055641,1708792242357,-849.27,0.00019726,2]
[315055642,1708792242367,-961.52,0.00019726,2]
[315055643,1708792242376,-1739.19,0.00019726,2]
[315055644,1708792242386,-590.41,0.00019726,2]
[315055645,1708792242395,-1039.76,0.00019726,2]
[315055646,1708792242406,-818.24,0.00019726,2]
[315055647,1708792242414,-500.0,0.00019726,2]
[315055648,1708792242424,-635.34,0.00019726,2]
[315055649,1708792242433,-8430.61,0.00019726,2]
[315055650,1708792242443,-7966.37,0.00019726,2]
[315055651,1708792242452,-500.0,0.00019726,2]
[315055652,1708792242461,-500.0,0.00019726,2]
[315055653,1708792242470,-551.53,0.00019726,2]
[315055654,1708792242479,-500.0,0.00019726,2]
[315055655,1708792242488,-500.0,0.00019726,2]
[315055656,1708792242497,-757.09,0.00019726,2]
[315055657,1708792242507,-500.0,0.00019726,2]
[315055658,1708792242516,-763.88,0.00019726,2]
[315055659,1708792242526,-306.0,0.00019781,2]
[315055660,1708792242535,-153.0,0.00019781,2]
[315055661,1708792242544,-638.97,0.00019854,2]
[315055662,1708792242554,-500.0,0.00019854,2]
[315055663,1708792242565,-482.68,0.00019854,2]
[315055664,1708792242574,-506.51,0.00019854,2]
[315055665,1708792242583,-500.0,0.00019854,2]
[315055666,1708792242593,-544.29,0.00019854,2]
[315055667,1708792242602,-441.39404538,0.00019854,2]
[315055668,1708792242611,-584.79063266,0.00019854,2]
[315055669,1708792242620,-603.90297017,0.00019854,2]
[315055670,1708792242629,-3371.77,0.00019854,2]
[315055671,1708792242642,-4194.45,0.00019854,2]
[315055672,1708792242651,-1247.57,0.00019854,2]
[315055673,1708792242660,-1710.6,0.00019854,2]
[315055674,1708792242669,-1405.15,0.00019854,2]
[315055675,1708792242679,-500.0,0.00019854,2]
[315055676,1708792242688,-307.42899316,0.00019854,2]
[315055677,1708792242697,-1058.4,0.00019854,2]
[315055678,1708792242708,-500.0,0.00019854,2]
[315055679,1708792242717,-4838.19,0.00019895,2]
[315055680,1708792242728,-2114.78,0.00019895,2]
[315055681,1708792242738,-1094.48,0.00019895,2]
[315055682,1708792242747,-173.5714033,0.00019909,2]
[315055683,1708792242756,-620.92183408,0.0001991,2]
[315055684,1708792242765,-2774.78266391,0.00019942,2]
[315055685,1708792242774,-794.77,0.00019958,2]
[315055686,1708792242784,-794.77,0.00019998,2]
[315055687,1708792242793,-794.77,0.00019999,2]
[315055688,1708792242802,-500.0,0.0002,2]
[315055689,1708792242813,-635.87,0.0002,2]
[315055690,1708792242822,-500.0,0.0002,2]
[315055691,1708792242831,-500.0,0.0002,2]
[315055692,1708792242841,-500.0,0.0002,2]
[315055693,1708792242850,-500.0,0.0002,2]
[315055694,1708792242859,-1218.54,0.0002,2]
[315055695,1708792242868,-500.0,0.0002,2]
[315055696,1708792242878,-151.51666668,0.0002,2]
[315055697,1708792242887,-500.0,0.0002,2]
[315055698,1708792242896,-1573.36,0.0002,2]
[315055699,1708792242905,-780.3,0.0002,2]
[315055700,1708792242914,-849.27,0.0002,2]
[315055701,1708792242923,-961.52,0.0002,2]
[315055702,1708792242932,-1739.19,0.0002,2]
[315055703,1708792242942,-590.41,0.0002,2]
[315055704,1708792242951,-532.09207591,0.0002,2]
[315055705,1708792242960,-1039.76,0.0002,2]
[315055706,1708792242970,-818.24,0.0002,2]
[315055707,1708792242978,-987.0,0.0002,4]
[315055708,1708792242988,-500.0,0.0002,2]
[315055709,1708792243099,-541.0,0.0002,4]
[315055710,1708792243109,-635.34,0.0002,2]
[315055711,1708792243119,-8430.61,0.0002,2]
[315055712,1708792243128,-7966.37,0.0002,2]
[315055713,1708792243137,-500.0,0.0002,2]
[315055714,1708792243147,-792.64185061,0.0002,4]
[315055715,1708792243156,-551.53,0.0002,2]
[315055716,1708792243165,-500.0,0.0002,2]
[315055717,1708792243174,-294.39801914,0.0002,2]
[315055718,1708792243184,-757.09,0.0002,2]
[315055719,1708792243193,-763.88,0.0002,2]
[315055720,1708792243202,-794.77,0.00020009,2]
[315055721,1708792243212,-50000.0,0.00020014,2]
[315055722,1708792243222,-151.0,0.00020014,2]
[315055723,1708792243231,-794.77,0.00020019,2]
[315055724,1708792243241,-794.77,0.00020019,2]
[315055725,1708792243251,-794.77,0.00020019,2]
[315055726,1708792243260,-50000.0,0.00020021,2]
[315055727,1708792243270,-151.0,0.00020021,2]
[315055728,1708792243279,-154.214565,0.00020021,2]
[315055729,1708792243289,-220.596274,0.00020021,2]
[315055730,1708792243298,-151.0,0.00020021,2]
[315055731,1708792243308,-50000.0,0.00020028,2]
[315055732,1708792243317,-50000.0,0.00020035,2]
[315055733,1708792243328,-50000.0,0.00020042,2]
[315055734,1708792243337,-794.77,0.00020042,2]
[315055735,1708792243346,-153.859234,0.00020042,2]
[315055736,1708792243356,-794.77,0.00020047,2]
[315055737,1708792243366,-794.77,0.00020047,2]
[315055738,1708792243376,-794.77,0.00020047,2]
[315055739,1708792243385,-794.77,0.00020047,2]
[315055740,1708792243395,-794.80359977,0.00020047,2]
[315055741,1708792243404,-50000.0,0.00020049,2]
[315055742,1708792243413,-151.436406,0.00020049,2]
[315055743,1708792243423,-358.430462,0.00020049,2]
[315055744,1708792243432,-358.430462,0.00020049,2]
[315055745,1708792243441,-151.0,0.00020049,2]
[315055746,1708792243451,-152.51912,0.00020049,2]
[315055747,1708792243460,-151.0,0.00020049,2]
[315055748,1708792243469,-500.0,0.00020055,2]
[315055749,1708792243478,-500.0,0.00020055,2]
[315055750,1708792243487,-300.93193627,0.00020055,2]
[315055751,1708792243496,-500.0,0.00020055,2]
[315055752,1708792243505,-500.0,0.00020055,2]
[315055753,1708792243515,-500.0,0.00020055,2]
[315055754,1708792243524,-500.0,0.00020055,2]
[315055755,1708792243533,-500.0,0.00020055,2]
[315055756,1708792243543,-458.13166133,0.00020055,2]
[315055757,1708792243552,-500.0,0.00020055,2]
[315055758,1708792243562,-500.0,0.00020055,2]
[315055759,1708792243571,-500.0,0.00020055,2]
[315055760,1708792243580,-500.0,0.00020055,2]
[315055761,1708792243590,-521.82210049,0.00020055,2]
[315055762,1708792243599,-500.0,0.00020055,2]
[315055763,1708792243609,-500.0,0.00020055,2]
[315055764,1708792243621,-500.0,0.00020055,2]
[315055765,1708792243631,-500.0,0.00020055,2]
[315055766,1708792243641,-500.0,0.00020055,2]
[315055767,1708792243653,-500.0,0.00020055,2]
[315055768,1708792243663,-500.0,0.00020055,2]
[315055769,1708792243673,-500.0,0.00020055,2]
[315055770,1708792243683,-420.3902914,0.00020055,2]
[315055771,1708792243693,-500.0,0.00020055,2]
[315055772,1708792243702,-500.0,0.00020055,2]
[315055773,1708792243712,-500.0,0.00020055,2]
[315055774,1708792243721,-500.0,0.00020055,2]
[315055775,1708792243731,-50000.0,0.00020056,2]
[315055776,1708792243741,-5000.0,0.00020056,2]
[315055777,1708792243750,-5000.0,0.00020056,2]
[315055778,1708792243760,-50000.0,0.00020056,2]
[315055779,1708792243769,-5000.0,0.00020056,2]
[315055780,1708792243778,-5000.0,0.00020056,2]
[315055781,1708792243787,-166.666666,0.00020076,2]
[315055782,1708792243797,-679.6997,0.000201,2]
[315055783,1708792243809,-638.97,0.00020128,2]
[315055784,1708792243818,-500.0,0.00020128,2]
[315055785,1708792243827,-500.0,0.00020128,2]
[315055786,1708792243836,-544.29,0.00020128,2]
[315055787,1708792243844,-3371.77,0.00020128,2]
[315055788,1708792243854,-4194.45,0.00020128,2]
[315055789,1708792243863,-1247.57,0.00020128,2]
[315055790,1708792243872,-1710.6,0.00020128,2]
[315055791,1708792243881,-1405.15,0.00020128,2]
[315055792,1708792243890,-1058.4,0.00020128,2]
[315055793,1708792243900,-500.0,0.00020128,2]
[315055794,1708792243909,-50000.0,0.00020139,2]
[315055795,1708792243918,-50000.0,0.00020142,2]
[315055796,1708792243927,-358.430462,0.00020142,2]
[315055797,1708792243936,-358.430462,0.00020142,2]
[315055798,1708792243945,-151.0,0.00020142,2]
[315055799,1708792243955,-151.0,0.00020142,2]
[315055800,1708792243964,-8448.00942863,0.0002015,2]
[315055801,1708792243973,-4838.19,0.00020169,2]
[315055802,1708792243982,-2114.78,0.00020169,2]
[315055803,1708792243991,-1094.48,0.00020169,2]
[315055804,1708792244001,-175.097564,0.00020169,2]
[315055805,1708792244010,-175.097564,0.00020169,2]
[315055806,1708792244019,-8917.62462141,0.00020186,2]
[315055807,1708792244028,-580.0,0.000202,2]
[315055808,1708792244037,-200.5294442,0.00020247,2]
[315055809,1708792244046,-200.5294442,0.00020247,2]
[315055810,1708792244055,-200.5294442,0.00020247,2]
[315055811,1708792244066,-200.5294442,0.00020247,2]
[315055812,1708792244075,-200.5294442,0.00020247,2]
[315055813,1708792244084,-635.87,0.00020273,2]
[315055814,1708792244093,-500.0,0.00020273,2]
[315055815,1708792244102,-465.21424643,0.00020273,2]
[315055816,1708792244111,-500.0,0.00020273,2]
[315055817,1708792244119,-577.15,0.00020273,2]
[315055818,1708792244128,-1218.54,0.00020273,2]
[315055819,1708792244137,-500.0,0.00020273,2]
[315055820,1708792244147,-500.0,0.00020273,2]
[315055821,1708792244157,-1573.36,0.00020273,2]
[315055822,1708792244166,-780.3,0.00020273,2]
[315055823,1708792244175,-849.27,0.00020273,2]
[315055824,1708792244185,-961.52,0.00020273,2]
[315055825,1708792244195,-1739.19,0.00020273,2]
[315055826,1708792244204,-590.41,0.00020273,2]
[315055827,1708792244214,-1039.76,0.00020273,2]
[315055828,1708792244223,-818.24,0.00020273,2]
[315055829,1708792244233,-500.0,0.00020273,2]
[315055831,1708792244242,-635.34,0.00020273,2]
[315055833,1708792244252,-8430.61,0.00020273,2]
[315055835,1708792244262,-7966.37,0.00020273,2]
[315055837,1708792244272,-500.0,0.00020273,2]
[315055838,1708792244281,-551.53,0.00020273,2]
[315055839,1708792244291,-500.0,0.00020273,2]
[315055840,1708792244300,-757.09,0.00020273,2]
[315055842,1708792244313,-763.88,0.00020273,2]
[315055843,1708792244323,-393.2863309,0.00020329,2]
[315055844,1708792244333,-153.0,0.00020329,2]
[315055845,1708792244343,-1619.70626948,0.00020388,2]
[315055846,1708792244353,-40949.68768927,0.00020389,2]
[315055847,1708792244362,-5000.0,0.00020389,2]
[315055848,1708792244372,-638.97,0.00020402,2]
[315055849,1708792244381,-500.0,0.00020402,2]
[315055851,1708792244390,-379.66812697,0.00020402,2]
[315055853,1708792244399,-544.29,0.00020402,2]
[315055855,1708792244408,-3371.77,0.00020402,2]
[315055857,1708792244418,-4194.45,0.00020402,2]
[315055859,1708792244427,-1247.57,0.00020402,2]
[315055861,1708792244436,-1710.6,0.00020402,2]
[315055863,1708792244445,-1405.15,0.00020402,2]
[315055864,1708792244453,-1058.4,0.00020402,2]
[315055867,1708792244463,-500.0,0.00020402,2]
[315055869,1708792244472,-5000.0,0.0002043,2]
[315055870,1708792244482,-5000.0,0.00020437,2]
[315055872,1708792244491,-4838.19,0.00020443,2]
[315055874,1708792244500,-2114.78,0.00020443,2]
[315055876,1708792244510,-1094.48,0.00020443,2]
[315055878,1708792244520,-5000.0,0.00020479,2]
[315055880,1708792244529,-5000.0,0.00020485,2]
[315055882,1708792244538,-5000.0,0.00020494,2]
[315055884,1708792244548,-5000.0,0.00020504,2]
[315055887,1708792244559,-166.666666,0.00020524,2]
[315055888,1708792244568,-5000.0,0.00020529,2]
[315055890,1708792244578,-5000.0,0.00020534,2]
[315055893,1708792244588,-222.913073,0.00020541,2]
[315055895,1708792244597,-363.435186,0.00020541,2]
[315055897,1708792244606,-152.693571,0.00020541,2]
[315055898,1708792244615,-635.87,0.00020547,2]
[315055900,1708792244624,-500.0,0.00020547,2]
[315055902,1708792244633,-500.0,0.00020547,2]